[Event "Asian Amateur-ch Open 2022"]
[Site "Muscat"]
[Date "2022.10.05"]
[Round "9.8"]
[White "Owlad, Ehsan"]
[Black "Madhusoodanan, K.R."]
[Result "0-1"]
[ECO "A54"]
[WhiteElo "1962"]
[BlackElo "1663"]
[Annotator "TA"]
[PlyCount "114"]
[EventDate "2022.09.29"]
[EventType "swiss"]
[EventCountry "OMN"]
[SourceTitle "playchess.com"]
[Source "ChessBase"]
[SourceQuality "1"]
[TimeControl "5400+30"]

{[%evp 20,114,53,38,33,29,59,23,7,5,16,-10,49,46,43,-36,-35,-35,-41,-59,-40,-47,-43,-32,0,-19,-13,-36,-18,-8,-24,-22,38,0,0,0,0,-21,-23,-4,-22,-13,-8,-236,-242,-231,-233,-518,-188,-170,-145,-337,-318,-310,-214,-230,-193,-211,-204,-996,-1005,-3805,-3681,-29992,-29989,-29993,-29985,-29984,-29980,-29976,-29953,-12839,-11346,-29973,-29976,-29974,-29966,-29954,-29950,-29947,-29952,-6737,-3246,-8391,-7584,-6179,-6179,-1903,-5306,-5165,-5106,-2204,-2148,-29980,-29981,-29987,-29988]} 1. d4 {[%emt 0:00:09]} Nf6 {[%emt 0:01:47]} 2. Nf3 {[%emt 0:00:08]} d6 {[%emt 0:00:49]} 3. g3 {[%emt 0:00:23]} Nbd7 {[%emt 0:01:34]} 4. Bg2 {[%emt 0:00:15]} e5 {[%emt 0:00:03]} 5. O-O {[%emt 0:01:36]} Be7 {[%emt 0:00:32]} 6. c4 {[%emt 0:00:44]} O-O {[%emt 0:01:32]} 7. Nc3 {[%emt 0:00:14]} c6 {[%emt 0:01:54]} 8. e4 {[%emt 0:01:22]} Qc7 {[%emt 0:01:07]} 9. b3 {[%emt 0:01:50]} Re8 {[%emt 0:04:02]} 10. Bb2 {[%emt 0:03:47]} Bf8 {[%emt 0:02:09]} 11. Qc2 {[%emt 0:01:16]} g6 {[%emt 0:01:42] A54: Old Indian Defence with Nf3, but without e4.} 12. Rad1 {[%emt 0:02:21][%cal Oc4c5]} Bg7 {[%emt 0:02:29][%cal Ob7b5]} 13. dxe5 {[%emt 0:00:36]} dxe5 {[%emt 0:02:13] White has an edge.} 14. Ba3 {[%emt 0:00:45]} Bf8 {[%emt 0:01:25] [#] Inhibits Bd6.} 15. Qc1 $146 {[%emt 0:01:06]} ({Predecessor:} 15. Bxf8 Nxf8 16. Qd2 Bg4 17. Qd6 Qe7 18. c5 a5 19. h3 Bxf3 20. Bxf3 Ne6 21. Qxe7 Rxe7 {0-1 (52) Otero,C-Bies,G San Fernando 1999}) 15... Qa5 {[%emt 0:01:54]} ({Black should play} 15... Nc5 $11) 16. Bxf8 {[%emt 1:21:58]} Nxf8 {[%emt 0:00:39]} 17. a3 {[%emt 0:00:00]} (17. Rd6 $1 $14) 17... Bg4 $15 {[%emt 0:02:57]} 18. b4 {[%emt 0:00:00]} Qc7 {[%emt 0:01:20]} 19. Qg5 {[%emt 0:00:00]} Qe7 {[%emt 0:04:58]} 20. c5 {[%emt 0:00:00]} Bxf3 {[%emt 0:01:33]} 21. Bxf3 {[%emt 0:00:00]} Rad8 {[%emt 0:00:13]} 22. Ne2 {[%emt 0:00:00]} Kg7 {[%emt 0:02:44]} 23. Bg2 {[%emt 0:00:00]} (23. Nc1 {looks sharper.} a5 24. h4 h6 25. Qe3) 23... h6 {[%emt 0:00:18]} 24. Qc1 {[%emt 0:00:00]} Ne6 {[%emt 0:05:47]} 25. Qc3 {[%emt 0:00:00]} Ng5 {[%emt 0:02:49]} (25... Nc7 $11) 26. f3 {[%emt 0:00:00]} Qc7 {[%emt 0:13:33]} 27. h4 {[%emt 0:00:00]} Ne6 {[%emt 0:01:09][%cal Bg5e6,Be6d4,Bd4e2][%mdl 32]} 28. Bh3 {[%emt 0:00:00]} Nd4 $1 {[%emt 0:02:22]} 29. Kf2 {[%emt 0:00:00][%cal Re2d4]} Nxe2 {[%emt 0:03:02]} 30. Kxe2 {[%emt 0:00:00]} Rd4 {[%emt 0:00:57]} 31. Rxd4 $2 {[%emt 0:00:00]} (31. Rd2 $11 {and White has nothing to worry.}) 31... exd4 $19 {[%emt 0:00:25]} 32. Qxd4 {[%emt 0:00:00] [#] Qd6 is the strong threat.} Qxg3 {[%emt 0:01:45]} 33. Bd7 {[%emt 0:00:00]} (33. Rh1 {was called for.}) 33... Re5 $2 {[%emt 0:04:40]} (33... Rd8 34. e5 Nxd7 35. e6+ Qe5+ 36. Qxe5+ Nxe5) 34. Bc8 {[%emt 0:00:00]} b6 {[%emt 0:06:10]} 35. h5 $2 {[%emt 0:00:00] This costs White the game.} (35. cxb6 $17 {is a better defense.} axb6 36. Rg1) 35... Qh2+ {[%emt 0:02:37]} ({Not} 35... Rxh5 $2 36. Bb7 $19) 36. Kd3 {[%emt 0:00:00]} Nxh5 {[%emt 0:04:18]} 37. Rf2 {[%emt 0:00:00]} Qf4 {[%emt 0:01:29]} 38. cxb6 {[%emt 0:00:00]} axb6 {[%emt 0:00:15]} 39. Qxb6 $2 {[%emt 0:00:00]} (39. Bb7) 39... Qc1 {[%emt 0:00:50] [#] aiming for ...Nf4+.} 40. Qa7 {[%emt 0:00:00]} c5 {[%emt 0:03:49][%cal Rh5f4]} 41. Rd2 {[%emt 0:00:00]} Nf4+ {[%emt 0:03:10]} 42. Ke3 {[%emt 0:00:00]} Qg1+ {[%emt 0:00:34]} 43. Rf2 {[%emt 0:00:00]} g5 {[%emt 0:00:57]} 44. bxc5 {[%emt 0:00:00]} Qe1+ {[%emt 0:05:09]} 45. Kd4 {[%emt 0:00:00]} Re8 {[%emt 0:00:42]} 46. Rb2 {[%emt 0:00:00]} Rxc8 {[%emt 0:00:24]} 47. Rb7 {[%emt 0:00:00]} Rd8+ {[%emt 0:01:28]} 48. Kc4 {[%emt 0:00:00]} Qe2+ {[%emt 0:00:31]} 49. Kb4 {[%emt 0:00:00]} Rd4+ {[%emt 0:01:16]} 50. Ka5 {[%emt 0:00:00]} Qa2 {[%emt 0:01:34]} 51. Kb6 {[%emt 0:00:00]} Qb3+ {[%emt 0:00:30]} 52. Kc6 {[%emt 0:00:00]} Qe6+ {[%emt 0:00:26]} 53. Kb5 {[%emt 0:00:00]} Nd3 {[%emt 0:00:14] ( -> ...Qb3+)} 54. Re7 {[%emt 0:00:00]} Qb3+ {[%emt 0:01:13]} 55. Kc6 {[%emt 0:00:00]} Ra4 {[%emt 0:01:24]} 56. Rxf7+ {[%emt 0:00:00]} Qxf7 {[%emt 0:00:07]} 57. Qxa4 {[%emt 0:00:00]} Qe8+ {[%emt 0:00:01] Weighted Error Value: White=0.89/Black=0.23 (precise)} 0-1

[Event "Asian Amateur-ch Open 2022"]
[Site "Muscat"]
[Date "2022.10.05"]
[Round "9.10"]
[White "Alharthi, Ahmed Mohammed A"]
[Black "Al Amari, Mohammed"]
[Result "1-0"]
[ECO "B13"]
[WhiteElo "1950"]
[BlackElo "1646"]
[Annotator "TA"]
[PlyCount "93"]
[EventDate "2022.09.29"]
[EventType "swiss"]
[EventCountry "OMN"]
[SourceTitle "playchess.com"]
[Source "ChessBase"]
[SourceQuality "1"]
[TimeControl "5400+30"]

{[%evp 9,93,2,1,0,8,-62,-48,-109,-101,-264,-270,-270,-280,-340,-334,-483,-474,-482,-459,-554,0,-65,0,0,0,0,0,0,41,39,561,543,530,552,588,591,566,572,566,538,608,603,658,650,644,622,637,567,616,593,594,588,513,489,612,618,634,623,692,698,744,736,858,947,939,942,891,886,1089,1035,29975,29976,29976,29977,29975,29977,29982,29977,29977,29977,29980,29982,29985,29986,29991,29992]} 1. d4 {[%emt 0:00:40]} d5 {[%emt 0:00:12]} 2. Bf4 {[%emt 0:00:14]} c5 {[%emt 0:00:34]} 3. e3 {[%emt 0:01:50]} cxd4 {[%emt 0:00:32]} 4. exd4 {[%emt 0:00:25]} Nc6 {[%emt 0:00:03]} 5. c3 {[%emt 0:00:41]} f6 {[%emt 0:01:14]} 6. Bd3 {[%emt 0:01:55] [#] And now Qh5+ would win. B13: Caro-Kann: Exchange Variation and Panov-Botvinnik Attack.} e5 {[%emt 0:03:06]} 7. dxe5 {[%emt 0:03:30]} (7. Qh5+ $11 Kd7 8. dxe5) 7... fxe5 $15 {[%emt 0:00:12]} 8. Qh5+ {[%emt 0:02:09]} (8. Be3 $15) 8... g6 $17 {[%emt 0:01:14]} 9. Bxg6+ {[%emt 0:02:46]} (9. Qe2 $17 {was forced.}) 9... hxg6 $19 {[%emt 0:00:20]} 10. Qxh8 {[%emt 0:01:05]} exf4 {[%emt 0:00:15]} 11. Qxg8 {[%emt 0:01:53]} Bf5 {[%emt 0:02:12] [#]} 12. Nf3 $146 {[%emt 0:15:38]} (12. Nd2 $142 Qe7+ 13. Ne2) ({Predecessor:} 12. Qh7 Qb6 13. b3 O-O-O 14. Ne2 Re8 15. Qf7 Qd8 16. Nd2 Bd3 17. O-O Bxe2 18. Rfe1 {1-0 (38) Wong,Y (2381)-Ronka,E (2303) Chess.com INT 2021}) 12... Qe7+ {[%emt 0:01:29]} 13. Kf1 {[%emt 0:00:37] [#]} O-O-O $1 {[%emt 0:00:46] aiming for ...Bd3+.} 14. Qh8 {[%emt 0:06:00]} Bd3+ $2 {[%emt 0:08:24]} ({Black should try} 14... Qe4 $19 {( -> ...Qd3+)} 15. h3 (15. Nbd2 $2 Qd3+ 16. Kg1 Bc5 $19) 15... Bc5) 15. Kg1 $15 {[%emt 0:00:08]} Qe2 {[%emt 0:00:21]} (15... d4 $1 $15 16. c4 Bg7 17. Qh3+ Bf5) 16. Nbd2 $11 {[%emt 0:01:23]} Bc5 $1 {[%emt 0:02:20][%csl Gc5,LRf2,LRh8][%cal Re2f2] A strong pair of Bishops.} 17. Qh4 {[%emt 0:02:42]} g5 $1 {[%emt 0:06:58]} 18. Qg4+ {[%emt 0:04:02]} Kb8 {[%emt 0:08:43][%csl Gc5][%cal Re2f2]} (18... Kc7 $5 19. Rf1 $8 Ne5 20. Nxe5 Qxe5 $14) 19. Rf1 {[%emt 0:00:53][%cal Ba1f1,Bf1e1,Be1e2][%mdl 32]} Be3 $2 {[%emt 0:19:44][%mdl 8192] White stays focused until the end.} (19... Ne5 $1 $14 20. Nxe5 (20. Qxg5 $2 Nxf3+ 21. gxf3 Bb6 $19) 20... Qxe5) 20. fxe3 $18 {[%emt 0:04:58]} fxe3 {[%emt 0:00:33]} 21. Qg3+ {[%emt 0:00:17]} Ka8 {[%emt 0:00:24]} 22. Re1 {[%emt 0:02:14]} exd2 {[%emt 0:02:11]} 23. Rxe2 {[%emt 0:00:18]} d1=Q+ {[%emt 0:00:59]} 24. Re1 {[%emt 0:00:22]} Qc2 {[%emt 0:03:39]} 25. Nxg5 {[%emt 0:03:04]} Qd2 {[%emt 0:06:58]} 26. Ne6 {[%emt 0:01:07] White threatens Nc7+ and mate.} Rc8 {[%emt 0:00:23]} 27. Qf2 {[%emt 0:05:30]} Qh6 {[%emt 0:00:33]} 28. Qe3 {[%emt 0:00:02]} Qh7 {[%emt 0:03:14]} 29. Ng5 {[%emt 0:02:07][%cal Be6g5,Bg5f7,Bf7d6][%mdl 32]} Qh4 {[%emt 0:01:30]} 30. g3 {[%emt 0:01:40]} Qc4 {[%emt 0:00:30]} 31. Nf7 {[%emt 0:01:52] Black must now prevent Nd6.} Rf8 {[%emt 0:02:44]} 32. Nd6 {[%emt 0:01:46]} Qa6 {[%emt 0:00:33]} 33. h4 {[%emt 0:04:22]} Bh7 {[%emt 0:05:27]} 34. b4 {[%emt 0:02:04]} Nb8 {[%emt 0:08:32]} 35. Ne8 {[%emt 0:04:45]} Rxe8 {[%emt 0:00:42]} 36. Qxe8 {[%emt 0:00:33]} Be4 {[%emt 0:00:14]} 37. Rxe4 {[%emt 0:01:25]} dxe4 {[%emt 0:00:16]} 38. Qxe4 {[%emt 0:00:08]} Qxa2 {[%emt 0:00:17][%mdl 4096] Endgame KQR-KQN} 39. Qe1 {[%emt 0:01:00] Hoping for h5.} a6 {[%emt 0:00:39]} 40. h5 {[%emt 0:00:59][%cal Bh4h5,Bh5h6,Bh6h7][%mdl 32] White mates.} Qf7 {[%emt 0:02:05]} 41. h6 {[%emt 0:00:27]} Qh7 {[%emt 0:00:05]} 42. Rh4 {[%emt 0:01:31]} Nd7 {[%emt 0:00:31]} 43. Qe8+ {[%emt 0:01:39]} Ka7 {[%emt 0:01:02]} 44. Qe3+ {[%emt 0:00:22]} Kb8 {[%emt 0:00:45]} 45. Qe4 {[%emt 0:00:56]} Qg8 {[%emt 0:00:41]} 46. h7 {[%emt 0:00:54]} Qxg3+ {[%emt 0:00:16]} 47. Kf1 {[%emt 0:00:12] Weighted Error Value: White=0.38/Black=0.67} 1-0

[Event "Asian Amateur-ch Open 2022"]
[Site "Muscat"]
[Date "2022.10.05"]
[Round "9.11"]
[White "Thapa, Krishna"]
[Black "UMER S.M"]
[Result "1-0"]
[ECO "E62"]
[WhiteElo "1928"]
[BlackElo "1631"]
[Annotator "TA"]
[PlyCount "79"]
[EventDate "2022.09.29"]
[EventType "swiss"]
[EventCountry "OMN"]
[SourceTitle "playchess.com"]
[Source "ChessBase"]
[SourceQuality "1"]
[TimeControl "5400+30"]

{[%evp 16,79,76,58,104,70,79,47,55,16,30,22,56,-35,-31,-27,-35,-17,-28,-58,-61,-65,-68,-159,-125,-319,-324,-310,-309,-306,-287,-310,-309,-284,-251,-349,-342,-362,-366,-359,-343,-337,-312,-307,-295,-351,-351,-449,-468,-448,-406,-444,-228,-239,0,0,0,0,0,0,0,-591,29985,29986,29997,29998]} 1. d4 {[%emt 0:00:02]} Nf6 {[%emt 0:00:05]} 2. c4 {[%emt 0:00:05]} g6 {[%emt 0:00:02]} 3. g3 {[%emt 0:00:09]} Bg7 {[%emt 0:00:04]} 4. Bg2 {[%emt 0:00:03]} d6 {[%emt 0:00:07]} 5. Nc3 {[%emt 0:00:06]} O-O {[%emt 0:00:12]} 6. Nf3 {[%emt 0:00:01]} c6 {[%emt 0:00:06]} 7. O-O {[%emt 0:00:07]} Qa5 {[%emt 0:00:05] The old main line.} 8. e4 {[%emt 0:02:48]} Qh5 {[%emt 0:00:22]} 9. Re1 {[%emt 0:03:50]} Bg4 {[%emt 0:00:46] E62: King's Indian: Fianchetto: 6...c6 and Panno Variation (6...Nc6) without ...a6.} (9... e5 $14) 10. Qd3 {[%emt 0:01:09]} e5 {[%emt 0:02:49]} 11. d5 {[%emt 0:05:24]} cxd5 {[%emt 0:01:16] [#] White is slightly better.} 12. Nxd5 $146 {[%emt 0:05:19]} ({Predecessor:} 12. cxd5 Na6 13. Qe3 Ne8 14. Nh4 Bd7 15. Bf3 Bg4 16. Bg2 Nb4 17. Qd2 g5 18. a3 gxh4 19. axb4 hxg3 20. hxg3 {0-1 (59) Ivoskaite,D (2008)-Asauskas,H (2384) Birstonas 2002}) 12... Nxd5 {[%emt 0:01:39]} 13. cxd5 {[%emt 0:00:08]} Na6 {[%emt 0:01:10]} 14. Bd2 {[%emt 0:03:33]} (14. Nh4 $1 $14 g5 15. Nf5) 14... Nc5 $15 {[%emt 0:00:56]} 15. Qa3 {[%emt 0:05:46]} a5 {[%emt 0:06:32]} 16. h4 {[%emt 0:04:52]} f5 {[%emt 0:03:17] ...b5 is the strong threat.} 17. Ng5 {[%emt 0:04:50] aiming for f3.} f4 $1 {[%emt 0:05:15]} 18. Rac1 {[%emt 0:09:35]} Bh6 {[%emt 0:04:00]} (18... Kh8 {with more complications.} 19. Ne6 Bxe6 20. dxe6 fxg3 21. fxg3 Nxe6 22. Rf1 Nd4) 19. gxf4 {[%emt 0:15:46]} ({White should try} 19. Rxc5 $15 dxc5 20. d6 Bxg5 21. hxg5) 19... Qxh4 {[%emt 0:01:26] Hoping for ...Bxg5.} 20. Ne6 {[%emt 0:01:07]} (20. Rxc5 $17 dxc5 21. Qg3 Qxg3 22. fxg3) 20... Bxe6 $19 {[%emt 0:02:46]} ({And not} 20... Nxe6 21. dxe6 Bxf4 22. Bxf4 Rxf4 23. f3 $17) 21. dxe6 {[%emt 0:02:37]} Bxf4 {[%emt 0:01:08]} 22. Bxf4 {[%emt 0:00:34]} Rxf4 {[%emt 0:00:47]} 23. f3 {[%emt 0:03:28]} Ra6 {[%emt 0:05:16]} 24. Red1 {[%emt 0:04:01]} Qe7 {[%emt 0:03:49]} 25. Qe3 {[%emt 0:01:08]} Nxe6 {[%emt 0:01:31]} 26. Rc8+ {[%emt 0:00:40]} Kg7 {[%emt 0:00:53]} 27. Rdc1 {[%emt 0:01:09]} Nc5 {[%emt 0:01:07]} 28. Qd2 {[%emt 0:02:47]} Rf8 {[%emt 0:02:57]} 29. Rxf8 {[%emt 0:00:28]} Qxf8 {[%emt 0:00:10]} (29... Kxf8 30. f4 $17) 30. Qd5 {[%emt 0:00:25][%cal Oc1c5] And now Rxc5! would win.} Qe7 {[%emt 0:00:40]} 31. a3 {[%emt 0:01:19]} a4 {[%emt 0:00:19]} (31... Qg5 32. Rxc5 Qe3+ 33. Kh2 Qf4+ 34. Kh1 Qh6+ 35. Kg1 Qe3+ 36. Kh2 Qf4+ 37. Kh3 dxc5 38. Qxb7+ Kf6 39. Qxa6+ $14) 32. Rc3 {[%emt 0:04:14]} Rb6 {[%emt 0:01:56]} 33. Rc2 {[%emt 0:00:49]} Qg5 {[%emt 0:03:53]} (33... Ne6 $142 {Threatens to win with ...Rb3.} 34. Qa5 Ra6) 34. f4 {[%emt 0:05:12] [#]} Qxf4 {[%emt 0:34:40]} ({Better is} 34... Qg3 $1 $19 {[%cal Rg3e3]} 35. fxe5 Nd3 36. Rc7+ Kh8 37. Rc8+ (37. Qf7 Qe3+ 38. Kh2 Qf4+ 39. Qxf4 Nxf4 $17) 37... Kg7 38. Rc7+ Kh8 39. Rc8+ (39. Qf7 Qe3+ 40. Kh2 Qf4+ 41. Qxf4 Nxf4 $17) 39... Kg7 40. Rc7+) 35. Rf2 $1 $36 {[%emt 0:00:18][%mdl 2048] White is more active. Really sharp!} Qe3 {[%emt 0:04:16]} 36. Qf7+ {[%emt 0:00:45]} Kh6 {[%emt 0:00:03]} 37. Qf8+ {[%emt 0:00:41]} Kh5 {[%emt 0:00:28]} 38. Kh2 $2 {[%emt 0:05:39][%mdl 8192]} (38. Kh1 $11 {and White has nothing to worry.} Qc1+ 39. Kh2 Rxb2 40. Bf3+ Kg5 41. Qe7+ Kh6 42. Qf8+ Kg5 43. Qe7+ Kh6 44. Qf8+ Kg5) 38... Nd3 $4 {[%emt 0:01:31][%mdl 8192] [#]} (38... Ne6 $19 39. Bf3+ Kh4 40. Qf6+ Ng5) 39. Bf3+ {[%emt 0:02:37]} Kg5 {[%emt 0:05:44]} 40. Rg2+ {[%emt 0:00:44] Weighted Error Value: White=0.46/Black=0.44} 1-0

[Event "Asian Amateur-ch Open 2022"]
[Site "Muscat"]
[Date "2022.10.05"]
[Round "9.12"]
[White "Bagheri, Majid"]
[Black "Takenouchi, Atsushi"]
[Result "1-0"]
[ECO "B55"]
[WhiteElo "1870"]
[BlackElo "1629"]
[Annotator "NA RC COMBH"]
[PlyCount "55"]
[EventDate "2022.09.29"]
[EventType "swiss"]
[EventCountry "OMN"]
[SourceTitle "playchess.com"]
[Source "ChessBase"]
[SourceQuality "1"]
[TimeControl "5400+30"]

{[%evp 8,54,35,13,1,0,41,4,32767,8,32767,29,18,10,28,21,26,-12,9,16,98,111,171,140,151,54,73,61,67,31,32,41,306,180,891,479,949,187,200,102,1216,1245,32767,32767,32767,29994,29994,29995,29999]} 1. e4 {[%emt 0:00:10]} c5 {[%emt 0:00:04]} 2. Nf3 {[%emt 0:00:10]} d6 {[%emt 0:00:06]} 3. d4 {[%emt 0:00:22]} cxd4 {[%emt 0:00:03]} 4. Nxd4 {[%emt 0:00:12]} Nf6 {[%emt 0:00:06]} 5. f3 {[%emt 0:00:19]} e5 {[%emt 0:00:09]} 6. Nb3 {[%emt 0:01:12]} a5 {[%emt 0:00:13]} 7. a4 {[%emt 0:01:00]} Be6 {[%emt 0:01:33]} 8. Bb5+ {[%emt 0:00:31]} Nc6 {[%emt 0:00:35]} 9. Nc3 {[%emt 0:04:50]} d5 {[%emt 0:01:20]} 10. Nxd5 {[%emt 0:10:24]} Nxd5 {[%emt 0:10:53]} 11. exd5 {[%emt 0:00:22]} Bxd5 {[%emt 0:01:04]} 12. O-O {[%emt 0:00:53]} Qb6+ {[%emt 0:10:12]} 13. Kh1 {[%emt 0:00:11]} Rd8 {[%emt 0:08:04]} (13... Bxb3 $11 14. cxb3 Bc5) 14. Qe2 {[%emt 0:12:59]} Bd6 {[%emt 0:00:51]} 15. c4 {[%emt 0:10:43]} (15. Be3 $18 Qc7 16. Qf2) 15... Be6 {[%emt 0:01:18]} 16. c5 {[%emt 0:00:26]} (16. Be3 $16 Qc7 17. Qf2) 16... Bxc5 {[%emt 0:06:16]} 17. Nxc5 {[%emt 0:02:53]} Qxc5 {[%emt 0:00:49]} 18. Be3 {[%emt 0:00:15]} Qb4 $1 {[%emt 0:22:47]} 19. Rac1 {[%emt 0:00:31]} Rc8 $2 {[%emt 0:10:34]} (19... f6 $14) 20. Rfd1 {[%emt 0:07:11]} Bb3 $2 {[%emt 0:08:03]} (20... f6) 21. Bc5 {[%emt 0:00:22]} Qf4 {[%emt 0:00:47]} 22. Re1 $2 {[%emt 0:01:49]} (22. Qd3 {[%csl Gd1][%cal Rd3d7]} Be6 23. Qd6) 22... f6 {[%emt 0:01:32]} 23. Qd3 {[%emt 0:04:05]} (23. Bxc6+ $18 bxc6 24. Qa6) 23... Bxa4 $2 {[%emt 0:06:04] [#]} (23... Be6 $16) 24. Qd6 $1 {[%emt 0:07:14]} Bxb5 {[%emt 0:03:15]} 25. Qe6+ {[%emt 0:00:16]} Kd8 {[%emt 0:00:15]} 26. Red1+ {[%emt 0:00:55]} Bd3 {[%emt 0:05:57]} 27. Rxd3+ {[%emt 0:00:26]} Nd4 {[%emt 0:00:36]} 28. Qe7# {[%emt 0:00:13]} 1-0